bitfinex/quotes_BTCUSD_20240731
["timestamp","ask_amount","ask_price","bid_price","bid_amount"]
[1722435141704,1.57449619,66669.0,66649.0,0.0647]
[1722435141928,1.03440719,66669.0,66649.0,0.0647]
[1722435142134,0.70141819,66669.0,66649.0,0.0647]
[1722435142349,0.95396899,66669.0,66649.0,0.0647]
[1722435142565,1.25395799,66669.0,66649.0,0.0647]
[1722435142776,0.95396899,66669.0,66649.0,0.0647]
[1722435142996,0.65397999,66669.0,66649.0,0.0647]
[1722435143218,0.63997999,66669.0,66649.0,0.0647]
[1722435143666,0.18999699,66669.0,66655.0,0.150025]
[1722435143912,0.20399699,66669.0,66666.0,0.0646]
[1722435144157,0.33999099,66669.0,66666.0,0.0646]
[1722435144613,0.35399099,66669.0,66666.0,0.0646]
[1722435144831,0.20399699,66669.0,66666.0,0.0646]
[1722435145714,0.26413599,66669.0,66666.0,0.0646]
[1722435145931,0.16413599,66669.0,66666.0,0.0646]
[1722435146362,0.15013599,66669.0,66666.0,0.0646]
[1722435146593,0.06227667,66669.0,66666.0,0.0646]
[1722435146809,0.04726307,66669.0,66666.0,0.0646]
[1722435147026,0.03826307,66669.0,66666.0,0.0646]
[1722435147238,0.02426307,66669.0,66666.0,0.0646]
[1722435147663,0.06573392,66669.0,66668.0,1.149997]
[1722435147947,0.06573392,66669.0,66668.0,1.449991]
[1722435147948,0.014,66669.0,66668.0,1.449991]
[1722435148194,0.215646,66681.0,66671.0,0.149989]
[1722435148195,0.06013,66676.0,66671.0,0.149989]
[1722435148463,0.006,66669.0,66668.0,1.749985]
[1722435148691,0.006,66669.0,66668.0,2.203279]
[1722435148692,0.015,66669.0,66668.0,2.203279]
[1722435148914,0.015,66669.0,66668.0,2.205279]
[1722435149153,0.009,66669.0,66668.0,2.505273]
[1722435149364,0.009,66669.0,66668.0,2.65482472]
[1722435149365,0.003,66669.0,66668.0,2.65482472]
[1722435149580,0.44858472,66686.0,66685.0,0.749792]
[1722435149801,0.44858472,66686.0,66685.0,0.897992]
[1722435150026,0.96405372,66706.0,66691.0,0.149944]
[1722435150252,0.02162067,66705.0,66691.0,0.149944]
[1722435150519,0.060111,66698.0,66685.0,0.1472]
[1722435150763,0.215646,66706.0,66686.0,0.00299872]
[1722435150764,0.02207032,66697.0,66686.0,0.00299872]
[1722435150990,0.02207032,66697.0,66691.0,0.149943]
[1722435151201,0.02207032,66697.0,66692.0,0.149942]
[1722435151425,0.02207032,66697.0,66696.0,0.149934]
[1722435151650,0.02207032,66697.0,66696.0,0.215534]
[1722435151885,0.026,66705.0,66697.0,0.299863]
[1722435152157,0.014,66705.0,66698.0,0.299856]
[1722435152371,0.014,66705.0,66696.0,0.0656]
[1722435152585,0.003,66697.0,66696.0,0.06859834]
[1722435152805,0.003,66697.0,66696.0,0.515402]
[1722435153024,0.003,66697.0,66696.0,0.81527]
[1722435153237,0.007,66697.0,66696.0,0.81527]
[1722435153454,0.007,66697.0,66696.0,0.89237]
[1722435153890,0.004,66697.0,66696.0,0.89237]
[1722435154106,0.011,66705.0,66700.0,0.149924]
[1722435154323,0.02,66705.0,66700.0,0.149924]
[1722435154541,0.02,66705.0,66698.0,0.299854]
[1722435154764,0.011,66705.0,66697.0,0.299861]
[1722435154978,0.011,66705.0,66700.0,0.149925]
[1722435155202,0.011,66705.0,66696.0,0.1427]
[1722435155424,0.011,66705.0,66700.0,0.149924]
[1722435155912,0.011,66705.0,66697.0,0.299859]
[1722435156164,0.060099,66711.0,66704.0,0.299832]
[1722435156390,0.44858472,66716.0,66712.0,0.299793]
[1722435156625,0.060089,66721.0,66715.0,0.149891]
[1722435156876,0.01909246,66720.0,66715.0,0.29978]
[1722435157135,0.0680577,66721.0,66707.0,0.00299772]
[1722435157136,0.060089,66721.0,66720.0,0.44964]
[1722435157355,0.149857,66731.0,66716.0,0.0777]
[1722435157569,0.44858472,66736.0,66717.0,0.149885]
[1722435157570,0.09323884,66730.0,66717.0,0.149885]
[1722435157791,0.09323884,66730.0,66716.0,0.0777]
[1722435157792,0.149862,66728.0,66716.0,0.217588]
[1722435158013,0.149862,66728.0,66716.0,0.0677]
[1722435158014,0.01864318,66727.0,66716.0,0.0677]
[1722435158485,0.16850718,66727.0,66716.0,0.0677]
[1722435158706,0.01864318,66727.0,66716.0,0.217588]
[1722435158933,0.01864318,66727.0,66719.0,0.149881]
[1722435159161,0.01864318,66727.0,66716.0,0.0677]
[1722435159381,0.16850818,66727.0,66716.0,0.0677]
[1722435159628,0.002,66727.0,66717.0,0.0658]
[1722435159882,0.002,66727.0,66726.0,0.449599]
[1722435160105,0.44858472,66741.0,66729.0,0.149858]
[1722435160106,0.59841772,66741.0,66729.0,0.149858]
[1722435160321,0.060076,66737.0,66727.0,0.299728]
[1722435160602,0.060076,66737.0,66725.0,0.299734]
[1722435160603,0.01752022,66736.0,66728.0,0.299723]
[1722435160819,0.01752022,66736.0,66730.0,0.0602]
[1722435161728,0.07476412,66734.0,66729.0,0.0769]
[1722435161944,0.449592,66727.0,66726.0,0.004]
[1722435162211,0.16800181,66727.0,66726.0,0.004]
[1722435162862,0.16800181,66727.0,66721.0,0.4771]
[1722435162863,0.01813781,66727.0,66721.0,0.4771]
[1722435163085,0.01841856,66726.0,66721.0,0.4771]
[1722435164007,0.16828456,66726.0,66721.0,0.4771]
[1722435164226,0.16828456,66726.0,66718.0,0.0759]
[1722435164227,0.01841856,66726.0,66718.0,0.0759]
[1722435164444,0.16828556,66726.0,66718.0,0.0759]
[1722435164668,0.149868,66725.0,66718.0,0.0759]
[1722435164908,0.01869934,66724.0,66718.0,0.0759]
[1722435165133,0.149874,66723.0,66718.0,0.0759]
[1722435165363,0.01725733,66722.0,66718.0,0.0759]
[1722435165584,0.01869934,66724.0,66718.0,0.0759]
[1722435165805,0.01869934,66724.0,66718.0,0.0809]
[1722435166021,0.001,66726.0,66721.0,0.006]
[1722435166473,0.149857,66730.0,66721.0,0.006]
[1722435166703,0.16811111,66729.0,66721.0,0.006]
[1722435166920,0.16811111,66729.0,66718.0,0.0759]
[1722435166921,0.16811011,66729.0,66718.0,0.0759]
[1722435167147,0.16811011,66729.0,66718.0,0.0809]
[1722435167407,0.16811011,66729.0,66718.0,0.0759]
[1722435167632,0.01825011,66729.0,66718.0,0.0779]
[1722435167849,0.01825011,66729.0,66719.0,0.149881]
[1722435168083,0.01825011,66729.0,66718.0,0.0759]
[1722435168299,0.149864,66727.0,66718.0,0.0759]
[1722435168518,0.47383411,66729.0,66718.0,0.0769]
[1722435168733,0.149865,66727.0,66718.0,0.0769]
[1722435168949,0.299724,66728.0,66718.0,0.0759]
[1722435169169,0.01853087,66728.0,66718.0,0.0759]
[1722435169876,0.149867,66726.0,66718.0,0.0759]
[1722435170156,0.31838318,66725.0,66718.0,0.0759]
[1722435170385,0.01864318,66725.0,66718.0,0.0759]
[1722435170607,0.299753,66722.0,66718.0,0.0759]
[1722435170831,0.299745,66724.0,66718.0,0.0759]
[1722435171056,0.01875551,66724.0,66718.0,0.0759]
[1722435171294,0.149873,66723.0,66718.0,0.0759]
[1722435171763,0.31849851,66724.0,66718.0,0.0759]
[1722435171997,0.14988,66720.0,66718.0,0.0759]
[1722435172212,0.299746,66723.0,66718.0,0.0759]
[1722435172481,0.149875,66722.0,66718.0,0.0759]
[1722435172702,0.01886782,66721.0,66712.0,0.0756]
[1722435173466,0.01886782,66721.0,66711.0,0.0639]
[1722435173467,0.449649,66719.0,66718.0,0.007]
[1722435173688,0.7684523,66719.0,66718.0,0.002]
[1722435174403,1.0682193,66719.0,66718.0,0.002]
[1722435174673,0.7684523,66719.0,66718.0,0.002]
[1722435175144,0.149895,66713.0,66712.0,0.004]
[1722435175358,0.149895,66713.0,66706.0,0.0825]
[1722435175359,0.01971031,66713.0,66706.0,0.0825]
[1722435175583,0.01971031,66713.0,66712.0,0.003]
[1722435176030,0.01971031,66713.0,66706.0,0.0825]
[1722435176296,0.299764,66719.0,66706.0,0.23540798]
[1722435176521,0.01971031,66719.0,66712.0,0.007]
[1722435176771,0.149862,66728.0,66716.0,0.0759]
[1722435176974,0.149872,66724.0,66716.0,0.0759]
[1722435177195,0.04107833,66723.0,66716.0,0.0759]
[1722435177436,0.02221051,66722.0,66713.0,0.0636]
[1722435177670,0.149888,66717.0,66713.0,0.0636]
[1722435177901,0.1,66730.0,66713.0,0.0636]
[1722435177902,0.04163997,66716.0,66713.0,0.0636]
[1722435178126,0.01942946,66716.0,66713.0,0.0636]
[1722435178340,0.149895,66713.0,66712.0,0.006]
[1722435178805,0.149895,66713.0,66709.0,0.0759]
[1722435178806,0.299797,66712.0,66709.0,0.0759]
[1722435179025,0.04385073,66711.0,66698.0,0.0798]
[1722435179302,0.0232659,66710.0,66698.0,0.0798]
[1722435179517,0.149907,66708.0,66698.0,0.0798]
[1722435179744,0.0232659,66707.0,66698.0,0.0798]
[1722435179980,0.149907,66708.0,66698.0,0.0798]
[1722435180256,0.02326717,66707.0,66698.0,0.0798]
[1722435180466,0.02326717,66706.0,66698.0,0.229728]
[1722435180689,0.02066537,66709.0,66698.0,0.0898]
[1722435180907,0.02066537,66709.0,66699.0,0.149926]
[1722435180908,0.023128,66708.0,66699.0,0.149926]
[1722435181127,0.023128,66708.0,66700.0,0.149924]
[1722435181351,0.023128,66708.0,66701.0,0.0651]
[1722435181594,0.023128,66708.0,66702.0,0.00982361]
[1722435182793,0.149914,66705.0,66702.0,0.00982361]
[1722435183009,0.299822,66707.0,66702.0,0.00982361]
[1722435183010,0.023128,66704.0,66702.0,0.00982361]
[1722435183228,0.02353552,66703.0,66702.0,0.00982361]
[1722435183678,0.49412347,66703.0,66702.0,0.00982361]
[1722435183909,0.19428747,66703.0,66702.0,0.02282361]
[1722435184137,0.34420547,66703.0,66698.0,0.0798]
[1722435184355,0.149923,66701.0,66698.0,0.0798]
[1722435184572,0.02353552,66700.0,66698.0,0.0798]
[1722435184790,0.02353552,66699.0,66698.0,0.0798]
[1722435185015,0.02353552,66699.0,66690.0,0.149947]
[1722435185016,0.149943,66692.0,66691.0,0.0658]
[1722435185275,0.04533754,66692.0,66678.0,0.1468]
[1722435185543,0.299899,66690.0,66678.0,0.1468]
[1722435185755,0.07476412,66697.0,66678.0,0.1468]
[1722435185756,0.04618075,66689.0,66678.0,0.1468]
[1722435185976,0.02326722,66688.0,66678.0,0.1468]
[1722435186206,0.02326722,66688.0,66669.0,0.4771]
[1722435186207,0.149977,66677.0,66673.0,0.0658]
[1722435186479,0.02392564,66677.0,66673.0,0.0658]
[1722435186762,0.02392564,66677.0,66672.0,0.081]
[1722435186763,0.17358353,66676.0,66672.0,0.081]
[1722435186976,0.17358353,66676.0,66668.0,1.066724]
[1722435186977,0.149986,66673.0,66668.0,1.066724]
[1722435187198,0.299981,66671.0,66668.0,1.000924]
[1722435187419,0.149994,66669.0,66668.0,1.000924]
[1722435187646,0.02465678,66669.0,66668.0,1.000924]
[1722435187882,0.17465078,66669.0,66668.0,1.000924]
[1722435188097,0.02465678,66669.0,66668.0,1.000924]
[1722435188315,0.47463978,66669.0,66668.0,1.000924]
[1722435188537,0.77462878,66669.0,66668.0,1.000924]
[1722435188754,0.79797134,66669.0,66668.0,1.000924]
[1722435188964,0.49798234,66669.0,66668.0,1.000924]
[1722435189410,0.19806211,66669.0,66668.0,1.000924]
[1722435189634,0.19806247,66669.0,66668.0,1.000924]
[1722435189865,0.47563978,66669.0,66668.0,1.007924]
[1722435190096,0.77562878,66669.0,66668.0,1.007924]
[1722435190338,1.09903143,66669.0,66668.0,1.007924]
[1722435190604,0.49905343,66669.0,66668.0,1.007924]
[1722435190829,0.04907043,66669.0,66668.0,1.007924]
[1722435191048,0.02565678,66669.0,66668.0,1.007924]
[1722435191270,0.02465678,66669.0,66668.0,1.00853341]
[1722435191706,0.02565678,66669.0,66668.0,1.00853341]
[1722435191955,0.17565078,66669.0,66668.0,1.00853341]
[1722435192172,0.02465678,66669.0,66668.0,1.00853341]
[1722435192398,0.17465078,66669.0,66668.0,1.00853341]
[1722435192621,0.17565078,66669.0,66668.0,1.00853341]
[1722435192908,0.77562878,66669.0,66668.0,1.00853341]
[1722435193127,0.77462878,66669.0,66668.0,1.00853341]
[1722435193344,0.77462878,66669.0,66668.0,1.000924]
[1722435193785,0.77462878,66669.0,66668.0,1.00849174]
[1722435194702,0.17465078,66669.0,66668.0,1.00849174]
[1722435194917,0.47563978,66669.0,66668.0,1.00849174]
[1722435195136,0.02565678,66669.0,66668.0,1.00849174]
[1722435195393,0.17565078,66669.0,66668.0,1.00849174]
[1722435195793,0.17565078,66669.0,66668.0,1.000924]
[1722435196010,0.17565078,66669.0,66668.0,1.00850593]
[1722435196222,0.47563978,66669.0,66668.0,1.00850593]
[1722435196645,0.17018078,66669.0,66668.0,1.00850593]
[1722435196851,0.47016978,66669.0,66668.0,1.00850593]
[1722435197949,0.77015878,66669.0,66668.0,1.00850593]
[1722435198162,1.07014778,66669.0,66668.0,1.00850593]
[1722435198404,1.21094778,66669.0,66668.0,1.00850593]
[1722435198615,1.21094778,66669.0,66668.0,1.000924]
[1722435199076,1.21094778,66669.0,66668.0,1.00850031]
[1722435199966,1.31094778,66669.0,66668.0,1.00850031]
[1722435200593,1.33244858,66669.0,66668.0,1.00850031]
[1722435201481,1.63243758,66669.0,66668.0,1.000924]
[1722435201742,1.65543758,66669.0,66668.0,1.000924]
[1722435201950,1.65543758,66669.0,66668.0,1.00850031]
[1722435201951,1.65571751,66669.0,66668.0,1.00850031]
[1722435202409,1.35472851,66669.0,66668.0,1.00850031]
[1722435202631,1.35472851,66669.0,66668.0,1.00950031]
[1722435202632,1.34572851,66669.0,66668.0,1.00950031]
[1722435202847,1.04573951,66669.0,66668.0,1.00950031]
[1722435203090,1.26492851,66669.0,66668.0,1.01050031]
[1722435203304,0.96493951,66669.0,66668.0,1.001924]
[1722435203532,0.96493951,66669.0,66668.0,1.0095415]
[1722435203740,0.96493951,66669.0,66668.0,1.0105415]
[1722435203959,0.96493951,66669.0,66668.0,1.0095415]
[1722435204175,0.96493951,66669.0,66668.0,1.0105415]
[1722435204405,0.89094562,66669.0,66668.0,1.0095415]
[1722435204616,0.90416786,66669.0,66668.0,1.0095415]
[1722435205047,1.20416904,66669.0,66668.0,1.0095415]
[1722435205257,1.49015804,66669.0,66668.0,1.000924]
[1722435205471,1.50115804,66669.0,66668.0,1.000924]
[1722435205682,1.50115804,66669.0,66668.0,1.00853127]
[1722435205900,1.49015804,66669.0,66668.0,1.00953127]
[1722435206142,1.49015804,66669.0,66668.0,1.00853127]
[1722435206368,1.50015804,66669.0,66668.0,1.00853127]
[1722435206584,1.61745804,66669.0,66668.0,1.00953127]
[1722435206827,1.59745804,66669.0,66668.0,1.00953127]
[1722435207738,1.59745804,66669.0,66668.0,1.001924]
[1722435207963,0.93005303,66669.0,66668.0,1.001924]
[1722435208173,0.88924461,66669.0,66668.0,1.00953127]
[1722435208449,0.90124461,66669.0,66668.0,1.00953127]
[1722435208900,0.88924461,66669.0,66668.0,1.00853127]
[1722435209113,1.20123361,66669.0,66668.0,1.00853127]
[1722435209340,0.90124461,66669.0,66668.0,1.00953127]
[1722435209557,0.88924461,66669.0,66668.0,1.00953127]
[1722435210035,1.20123361,66669.0,66668.0,1.00953127]
[1722435210262,1.53422261,66669.0,66668.0,1.00953127]
[1722435210522,1.53422261,66669.0,66668.0,1.00853127]
[1722435210523,1.74627029,66669.0,66668.0,1.00853127]
[1722435210723,1.74627029,66669.0,66668.0,1.00953127]
[1722435210935,1.78615428,66669.0,66668.0,1.00953127]
[1722435211173,1.77415428,66669.0,66668.0,1.00953127]
[1722435211395,1.74376677,66669.0,66668.0,1.001924]
[1722435211617,2.08363976,66669.0,66668.0,1.001924]
[1722435211835,1.80333854,66669.0,66668.0,1.00954325]
[1722435212048,1.80333854,66669.0,66668.0,1.000924]
[1722435212049,1.81333854,66669.0,66668.0,1.000924]
[1722435212273,1.76765076,66669.0,66668.0,1.00854325]
[1722435212484,1.43077777,66669.0,66668.0,1.00954325]
[1722435212704,1.41377777,66669.0,66668.0,1.00854325]
[1722435212928,1.71377777,66669.0,66668.0,1.00854325]
[1722435213174,1.71677777,66669.0,66668.0,1.00954325]
[1722435213390,1.71377777,66669.0,66668.0,1.000924]
[1722435213626,1.41677777,66669.0,66668.0,1.009596]
[1722435213832,1.43077777,66669.0,66668.0,1.009596]
[1722435214037,1.72777777,66669.0,66668.0,1.008596]
[1722435214519,1.7297042,66669.0,66668.0,1.008596]
[1722435214752,1.65224778,66669.0,66668.0,1.008596]
[1722435214988,2.02958344,66669.0,66668.0,1.008596]
[1722435215220,2.03558344,66669.0,66668.0,1.000924]
[1722435215436,2.04958344,66669.0,66668.0,1.001924]
[1722435215676,2.04958344,66669.0,66668.0,1.000924]
[1722435215677,2.05042344,66669.0,66668.0,1.000924]
[1722435215918,2.36441244,66669.0,66668.0,0.88959892]
[1722435216146,2.49396739,66669.0,66668.0,0.70137661]
[1722435216369,2.49396739,66669.0,66651.0,0.0156602]
[1722435216370,1.445997,66652.0,66651.0,0.0156602]
[1722435216610,2.13191385,66652.0,66651.0,0.0156602]
[1722435216824,2.29530663,66652.0,66651.0,0.0156602]
[1722435217040,1.97524063,66652.0,66651.0,0.0156602]
[1722435217263,1.93795848,66652.0,66651.0,0.0156602]
[1722435217741,1.35741533,66652.0,66651.0,0.0156602]
[1722435217976,1.61993336,66652.0,66651.0,0.0156602]
[1722435218240,1.25416736,66652.0,66651.0,0.0156602]
[1722435218466,0.63110136,66652.0,66651.0,0.0156602]
[1722435218686,0.29064435,66652.0,66651.0,0.0156602]
[1722435218908,0.60471035,66652.0,66651.0,0.0156602]
[1722435219124,0.29064435,66652.0,66651.0,0.0156602]
[1722435219339,0.60171035,66652.0,66651.0,0.0156602]
[1722435219577,0.15161135,66652.0,66651.0,0.0156602]
[1722435219793,0.05161135,66652.0,66651.0,0.0156602]
[1722435220008,0.15161135,66652.0,66651.0,0.0156602]
[1722435220223,0.30864435,66652.0,66651.0,0.0156602]
[1722435220431,0.60171035,66652.0,66651.0,0.0156602]
[1722435220641,0.29064435,66652.0,66651.0,0.0156602]
[1722435221320,0.14061135,66652.0,66651.0,0.0156602]
[1722435221533,0.04061135,66652.0,66651.0,0.0156602]
[1722435221758,0.19064435,66652.0,66651.0,0.0156602]
[1722435221974,0.15627135,66652.0,66651.0,0.0156602]
[1722435222196,0.31330435,66652.0,66651.0,0.0156602]
[1722435222646,0.61337035,66652.0,66651.0,0.0156602]
[1722435222853,0.60637035,66652.0,66651.0,0.0156602]
[1722435223278,0.60737035,66652.0,66651.0,0.0156602]
[1722435223920,0.90789618,66652.0,66651.0,0.0156602]
[1722435224151,0.15773118,66652.0,66651.0,0.0156602]
[1722435224362,0.16873118,66652.0,66651.0,0.0156602]
[1722435224568,0.31876418,66652.0,66651.0,0.0156602]
[1722435224783,0.61883018,66652.0,66651.0,0.0156602]
[1722435225242,0.91889618,66652.0,66651.0,0.0156602]
[1722435225871,0.90789618,66652.0,66651.0,0.0156602]
[1722435226081,0.91789618,66652.0,66651.0,0.0156602]
[1722435226325,0.91689618,66652.0,66651.0,0.0156602]
[1722435226541,1.20896218,66652.0,66651.0,0.0156602]
[1722435226962,1.21496218,66652.0,66651.0,0.0156602]
[1722435227213,1.21424295,66652.0,66651.0,0.0156602]
[1722435227633,1.31500375,66652.0,66651.0,0.0156602]
[1722435228253,1.27025668,66652.0,66651.0,0.0156602]
[1722435229147,1.26825668,66652.0,66651.0,0.0156602]
[1722435229356,1.36175082,66652.0,66651.0,0.0156602]
[1722435229560,1.27225668,66652.0,66651.0,0.0156602]
[1722435229773,1.26825668,66652.0,66651.0,0.0156602]
[1722435230208,1.26225668,66652.0,66651.0,0.0156602]
[1722435230430,1.37553411,66652.0,66651.0,0.0156602]
[1722435230647,2.05134437,66652.0,66651.0,0.0156602]
[1722435230859,2.07134437,66652.0,66651.0,0.0156602]
[1722435231093,2.24606375,66652.0,66651.0,0.0156602]
[1722435231301,2.41276136,66652.0,66651.0,0.0156602]
[1722435231523,2.42185973,66652.0,66651.0,0.0156602]
[1722435231735,2.39385973,66652.0,66651.0,0.0156602]
[1722435231949,2.41385973,66652.0,66651.0,0.0156602]
[1722435232137,2.42785973,66652.0,66651.0,0.0156602]
[1722435232371,2.10779373,66652.0,66651.0,0.0156602]
[1722435232639,2.06744274,66652.0,66651.0,0.0156602]
[1722435232869,1.52692903,66652.0,66651.0,0.0156602]
[1722435233100,1.31287674,66652.0,66651.0,0.0156602]
[1722435233324,1.59387674,66652.0,66651.0,0.0156602]
[1722435233548,1.88111516,66652.0,66651.0,0.0156602]
[1722435233782,1.91522032,66652.0,66651.0,0.0156602]
[1722435234005,1.31515432,66652.0,66651.0,0.0156602]
[1722435234223,1.30115432,66652.0,66651.0,0.0156602]
[1722435234440,1.31515432,66652.0,66651.0,0.0156602]
[1722435235161,0.98508832,66652.0,66651.0,0.0156602]
[1722435236092,0.98490779,66652.0,66651.0,0.0156602]
[1722435236314,1.28497379,66652.0,66651.0,0.0156602]
[1722435236570,0.99690779,66652.0,66651.0,0.0156602]
[1722435236795,0.99610088,66652.0,66651.0,0.0156602]
[1722435237706,1.14769906,66652.0,66651.0,0.0156602]
[1722435237932,0.99610088,66652.0,66651.0,0.0156602]
[1722435238391,1.14769906,66652.0,66651.0,0.0156602]
[1722435238886,0.99610088,66652.0,66651.0,0.0156602]
[1722435239575,0.9963231,66652.0,66651.0,0.0156602]
[1722435241254,0.38709273,66652.0,66651.0,0.0156602]
[1722435241475,0.38709273,66652.0,66651.0,0.2935602]
[1722435241476,0.11709715,66652.0,66651.0,0.2935602]
[1722435241684,0.19625015,66652.0,66651.0,0.8195652]
[1722435241910,0.04580672,66652.0,66651.0,0.3694602]
[1722435242126,0.06672586,66652.0,66651.0,0.16197045]
[1722435242340,0.20275886,66652.0,66651.0,0.16197045]
[1722435242552,0.05272586,66652.0,66651.0,0.16197045]
[1722435242756,0.06672586,66652.0,66651.0,0.16197045]
[1722435242961,0.51682486,66652.0,66651.0,0.16197045]
[1722435243169,0.51159824,66652.0,66651.0,0.16197045]
[1722435243377,0.06149924,66652.0,66651.0,0.1549602]
[1722435243585,0.11214704,66652.0,66651.0,0.1549602]
[1722435243791,0.36323061,66652.0,66651.0,0.1549602]
[1722435243999,0.21319761,66652.0,66651.0,0.16197045]
[1722435244210,0.21153224,66652.0,66651.0,0.1549602]
[1722435244412,0.19953224,66652.0,66651.0,0.1549602]
[1722435244618,0.08618986,66652.0,66651.0,0.1549602]
[1722435244845,0.68595298,66652.0,66651.0,0.02267045]
[1722435245051,1.70708498,66652.0,66651.0,0.0156602]
[1722435245259,2.00715098,66652.0,66651.0,0.0156602]
[1722435245463,2.00815098,66652.0,66651.0,0.0156602]
[1722435245680,2.00715098,66652.0,66651.0,0.0156602]
[1722435246432,2.05039211,66652.0,66651.0,0.0156602]
[1722435246776,2.03039211,66652.0,66651.0,0.0156602]
[1722435247766,2.02739211,66652.0,66651.0,0.0156602]
[1722435247991,2.03339211,66652.0,66651.0,0.0156602]
[1722435248353,2.34745811,66652.0,66651.0,0.0156602]
[1722435248555,2.35445811,66652.0,66651.0,0.0156602]
[1722435248757,2.34745811,66652.0,66651.0,0.0156602]
[1722435249001,2.32745811,66652.0,66651.0,0.0156602]
[1722435249204,2.37145811,66652.0,66651.0,0.0156602]
[1722435249418,2.37098628,66652.0,66651.0,0.0156602]
[1722435249596,3.00349641,66652.0,66651.0,0.0156602]
[1722435249785,2.46176502,66652.0,66651.0,0.0156602]
[1722435250652,2.45176502,66652.0,66651.0,0.0156602]
[1722435250781,2.46576502,66652.0,66651.0,0.0156602]
[1722435251426,2.45176502,66652.0,66651.0,0.0156602]
[1722435251676,2.46576502,66652.0,66651.0,0.0156602]
[1722435251849,2.46576502,66652.0,66645.0,0.009284]
[1722435251850,1.680511,66646.0,66645.0,0.009284]
[1722435252145,1.050345,66636.0,66631.0,0.0005]
[1722435252329,2.10221507,66636.0,66631.0,0.0005]
[1722435252530,2.10242619,66636.0,66631.0,0.0005]
[1722435252976,2.58096419,66636.0,66631.0,0.0005]
[1722435253185,2.35954655,66636.0,66631.0,0.0005]
[1722435253596,2.37354655,66636.0,66631.0,0.0005]
[1722435254443,2.41252313,66636.0,66631.0,0.0005]
[1722435254651,2.37354655,66636.0,66631.0,0.0005]
[1722435254913,2.38754655,66636.0,66631.0,0.0005]
[1722435255283,2.37354655,66636.0,66631.0,0.0005]
[1722435255489,2.38754655,66636.0,66631.0,0.0005]
[1722435255690,2.40478674,66636.0,66631.0,0.0005]
[1722435256500,2.48876558,66636.0,66631.0,0.0005]
[1722435256927,2.49766027,66636.0,66631.0,0.0005]
[1722435258273,1.680858,66632.0,66631.0,0.0005]
[1722435258503,2.21853805,66632.0,66631.0,0.0005]
[1722435258692,2.30682842,66632.0,66631.0,0.0005]
[1722435258893,2.49085208,66632.0,66631.0,0.0005]
[1722435259168,2.66861662,66632.0,66631.0,0.0005]
[1722435259682,2.68261662,66632.0,66631.0,0.0005]
[1722435260311,2.46151136,66632.0,66631.0,0.0005]
[1722435260519,2.47551136,66632.0,66631.0,0.0005]
[1722435260715,1.650963,66619.0,66618.0,0.009295]
[1722435261003,2.21948332,66619.0,66618.0,0.009295]
[1722435261166,2.33300957,66619.0,66618.0,0.009295]
[1722435261431,2.14150957,66619.0,66618.0,0.009295]
[1722435261657,2.09650731,66619.0,66618.0,0.009295]
[1722435262099,2.1115506,66619.0,66618.0,0.009295]
[1722435262306,2.19055286,66619.0,66618.0,0.009295]
[1722435262520,2.15855286,66619.0,66618.0,0.009295]
[1722435262746,1.70433886,66619.0,66618.0,0.009295]
[1722435262987,1.59304849,66619.0,66618.0,0.009295]
[1722435263625,1.57904849,66619.0,66618.0,0.009295]
[1722435264212,1.73041589,66619.0,66618.0,0.009295]
[1722435264686,1.00178214,66619.0,66618.0,0.009295]
[1722435264903,0.5368524,66619.0,66618.0,0.009295]
[1722435265142,0.78843793,66619.0,66618.0,0.009295]
[1722435265384,0.52222334,66619.0,66618.0,0.009295]
[1722435265546,0.83622334,66619.0,66618.0,0.009295]
[1722435265699,0.83622334,66619.0,66618.0,0.004295]
[1722435265700,1.10843734,66619.0,66618.0,0.004295]
[1722435266279,1.22243734,66619.0,66618.0,0.004295]
[1722435266541,1.20843734,66619.0,66618.0,0.004295]
[1722435266999,1.50865134,66619.0,66618.0,0.004295]
[1722435267001,1.51865134,66619.0,66618.0,0.004295]
[1722435267233,1.62456922,66619.0,66618.0,0.004295]
[1722435267660,1.61056922,66619.0,66618.0,0.004295]
[1722435268173,1.62456922,66619.0,66618.0,0.004295]
[1722435268407,1.61456922,66619.0,66618.0,0.004295]
[1722435268636,1.61256922,66619.0,66618.0,0.004295]
[1722435269053,1.61456922,66619.0,66618.0,0.004295]
[1722435269265,1.62656922,66619.0,66618.0,0.004295]
[1722435270109,1.61456922,66619.0,66618.0,0.004295]
[1722435270322,1.67475822,66619.0,66618.0,0.004295]
[1722435270539,1.66075822,66619.0,66618.0,0.004295]
[1722435270770,1.67475822,66619.0,66618.0,0.004295]
[1722435270986,1.68475822,66619.0,66618.0,0.004295]
[1722435271199,1.98497222,66619.0,66618.0,0.004295]
[1722435271413,2.06387222,66619.0,66618.0,0.004295]
[1722435271631,1.77742809,66619.0,66618.0,0.004295]
[1722435271846,1.37452809,66619.0,66618.0,0.004295]
[1722435272066,1.67452809,66619.0,66618.0,0.004295]
[1722435272277,1.53979898,66619.0,66618.0,0.004295]
[1722435272491,1.41504179,66619.0,66618.0,0.004295]
[1722435272698,1.42904179,66619.0,66618.0,0.004295]
[1722435272910,1.37452809,66619.0,66618.0,0.004295]
[1722435273344,1.38852809,66619.0,66618.0,0.004295]
[1722435273556,1.37452809,66619.0,66618.0,0.004295]
[1722435273768,1.2699152,66619.0,66618.0,0.068095]
[1722435273980,0.9467012,66619.0,66618.0,0.068095]
[1722435274196,0.37204927,66619.0,66618.0,0.068095]
[1722435274432,0.20794227,66619.0,66618.0,0.068095]
[1722435274675,0.488403,66619.0,66618.0,0.068095]
[1722435274896,0.22163654,66619.0,66618.0,0.068095]
[1722435275122,0.95817154,66619.0,66618.0,0.068095]
[1722435275350,0.20763654,66619.0,66618.0,0.068095]
[1722435275585,0.65695754,66619.0,66618.0,0.068095]
[1722435275810,0.35674354,66619.0,66618.0,0.068095]
[1722435276019,0.95717154,66619.0,66618.0,0.068095]
[1722435276237,0.96717154,66619.0,66618.0,0.068095]
[1722435276442,0.96717154,66619.0,66618.0,0.004295]
[1722435277091,0.66695754,66619.0,66618.0,0.004295]
[1722435277683,0.21663654,66619.0,66618.0,0.004295]
[1722435277952,0.21654526,66619.0,66618.0,0.01174131]
[1722435278162,0.36665226,66619.0,66618.0,0.01174131]
[1722435278379,0.21654526,66619.0,66618.0,0.004295]
[1722435278584,0.19354526,66619.0,66618.0,0.004295]
[1722435278790,0.11654526,66619.0,66618.0,0.004295]